Cogmind - Beta 15 @@@ ROGUE MODE // 2025.08.21 @ 22:23:36 Player: KeKe Result: Destroyed by G-34 Mercenary with Small Laser Performance ------------- Evolutions (0) 0 Regions Visited (1) 200 Robots Destroyed (11) 55 Value Destroyed (219) 219 Prototype IDs (0) 0 Alien Tech Used (0) 0 Bonus (0) 0 TOTAL SCORE: 474 Bonus ------- None Cogmind --------- Core Integrity 0/250 Matter 266/300 Energy 71/100 System Corruption 0% Temperature Cool (11) Movement Treading (480) Ox4 Location -10/Materials Parts ------- > --- POWER (1) -------- (None) > --- PROPULSION (2) --- Light Treads Compact Wheel > --- UTILITY (2) ------ Huge Storage Unit > --- WEAPON (2) ------- Small Laser Light Assault Rifle > --- INVENTORY (25) --- Wheel Wheel Heat Sink Signal Interpreter Improved Terrain Scanner Tractor Beam Small Laser Small Laser Mining Laser Peak State ------------ > --- POWER ------------ Light Ion Engine > --- PROPULSION ------- Wheel Wheel > --- UTILITY ---------- Small Storage Unit Huge Storage Unit > --- WEAPON ----------- Assault Rifle Light Assault Rifle > --- INVENTORY -------- Light Ion Engine Light Treads Light Treads Compact Wheel Signal Interpreter Improved Terrain Scanner Mining Laser [Rating: 7] Favorites ----------- Power Light Ion Engine Engine Light Ion Engine Propulsion Wheel Treads Light Treads Leg Aluminum Leg Wheel Wheel Utility Huge Storage Unit Storage Huge Storage Unit Weapon Light Assault Rifle Energy Gun Small Laser Ballistic Gun Light Assault Rifle Build | -11 -10 ------- Run | Yrd Mat Slots Evolved . | . . Power . | . . Propulsion . | . . Utility . | . . Weapon . | . . Parts Attached 12 | 3 9 Power 1 | . 1 Engine 1 | . 1 Core . | . . Reactor . | . . Propulsion 7 | 2 5 Treads 3 | . 3 Leg . | . . Wheel 4 | 2 2 Hover . | . . Flight . | . . Utility 1 | . 1 Device . | . . Storage 1 | . 1 Processor . | . . Hackware . | . . Protection . | . . Artifact . | . . Weapon 3 | 1 2 Energy Gun 1 | . 1 Energy Cannon . | . . Ballistic Gun 2 | 1 1 Ballistic Cannon . | . . Launcher . | . . Special Weapon . | . . Impact Weapon . | . . Slashing Weapon . | . . Piercing Weapon . | . . Special Melee Weapon . | . . Unidentified Prototypes . | . . Parts Lost 7 | . 7 Power 2 | . 2 Propulsion 3 | . 3 Utility . | . . Weapon 2 | . 2 Highest Loss Streak 6 | . 6 To Critical Strikes . | . . Average Backups 6 | 4 7 Power . | 1 . Propulsion 2 | 2 1 Utility 2 | . 3 Weapon 1 | . 1 Tool/Special . | . . Unused Backups 9 | 1 8 Power . | . . Propulsion 1 | . 1 Utility 5 | 1 4 Weapon 3 | . 3 Tool/Special . | . . Average Slot Usage (%) 75 | . 75 Engine 5 | . 5 Treads 3 | . 3 Wheel 24 | . 24 Storage 14 | . 14 Energy Gun 7 | . 7 Ballistic Gun 19 | . 19 Peak Build Rating 7 | 6 7 Average Rating 5 | 5 5 On Entrance 6 | 6 6 Naked Turns . | . . Heaviest Build 86 | 11 86 Greatest Support 26 | 20 26 Greatest Overweight (x) 8 | . 8 Average Overweight (x) 2 | . 2 Largest Inventory Capacity 25 | 8 25 Average Capacity 21 | 8 23 Most Carried 9 | 6 9 Average Carried 6 | 4 7 Final Capacity 25 | 8 25 Final Carried 9 | 5 9 Class Distribution -------------------- 53% | Mutant 46% | Scavenger-Mutant Dominant Class ---------------- Scavenger-Mutant | -10/Materials Resources | -11 -10 ----------- Run | Yrd Mat Matter Collected 416 | 262 154 Remotely . | . . Salvage Created 438 | 109 329 Parts 19 | 4 15 Haulers Intercepted . | . . Recyclers Shooed . | . . Parts Field Recycled . | . . Retrieved Matter . | . . Parts Self-Destructed . | . . Prevented . | . . Kills | -11 -10 ------- Run | Yrd Mat Combat Hostiles Destroyed 8 | . 8 Guns 8 | . 8 Classes Destroyed 4 | 2 2 Tunneler 1 | 1 . Recycler 2 | 1 1 Swarmer 3 | . 3 Grunt 5 | . 5 Best Kill Streak 5 | 1 5 Combat Bots Only 3 | . 3 Max Kills in Single Turn 1 | 1 1 Gunslinging . | . . Exploded . | . . Melee . | . . Uniques/NPCs Destroyed . | . . Combat | -11 -10 -------- Run | Yrd Mat Hostile Shots Fired 121 | . 121 Missed 24 | . 24 Hits 97 | . 97 Projectile 97 | . 97 Damage Taken 1007 | . 1007 Core 253 | . 253 Absorbed by Shields . | . . Core Remaining (%) 100 | 100 . Volleys Fired 52 | 8 44 Largest 2 | 2 2 Hottest 60 | 40 60 Shots Fired 88 | 16 72 Gun 88 | 16 72 Cannon . | . . Launcher . | . . Special . | . . Kinetic 77 | 16 61 Thermal 11 | . 11 Explosive . | . . Electromagnetic . | . . Robot Hit Streak 8 | 4 8 Robot Miss Streak 3 | 2 3 Penetration Max . | . . Secondary Targets . | . . Shots Hit Robots 53 | 10 43 Core Hits 22 | 4 18 Critical Kills . | . . Critical Parts Destroyed . | . . Critical Strikes . | . . Melee Attacks . | . . Impact . | . . Slashing . | . . Piercing . | . . Sneak Attacks . | . . Combat Hostiles . | . . Follow-up Attacks . | . . Damage Inflicted 513 | 100 413 Guns 513 | 100 413 Cannons . | . . Explosions . | . . Melee . | . . Ramming . | . . Kinetic 448 | 100 348 Thermal 65 | . 65 Explosive . | . . Electromagnetic . | . . Impact . | . . Slashing . | . . Piercing . | . . Highest Corruption . | . . Average Corruption . | . . Corruption Purged . | . . Corruption Blocked . | . . Overload Shots . | . . Overflow Damage . | . . Projectiles . | . . Explosions . | . . Melee . | . . Knockbacks . | . . Impact . | . . Kinetic . | . . Secondary . | . . Self-Inflicted Damage . | . . Shots . | . . Rammed . | . . Targets Rammed . | . . Kicked . | . . Crushed . | . . Highest Temperature 64 | . 64 Average Temperature 16 | . 16 Received Heat Transfer 441 | . 441 Siege Activations . | . . Martial Activations . | . . Shielding Activations . | . . Robots Disrupted . | . . Combat Hostiles . | . . Robots Corrupted . | . . Combat Hostiles . | . . Parts Fried . | . . Impact Corruptions . | . . Robots Melted . | . . Combat Hostiles . | . . Parts Melted . | . . Heat Transferred 150 | . 150 Parts Sabotaged . | . . Parts Stolen . | . . Parts Stripped . | . . Power Chain Reactions . | . . Alert | -11 -10 ------- Run | Yrd Mat Maximum Alert Level . | . . Low Security (%) 100 | 100 100 Level 1 . | . . Level 2 . | . . Level 3 . | . . Level 4 . | . . Level 5 . | . . High Security . | . . Max Security . | . . Peak Influence 84 | 5 84 Initial 3 | . 3 Average 29 | 2 33 Influence Increases 264 | 10 254 Destroy 0b10 Robot/C 160 | . 160 Destroy 0b10 Robot/NC 15 | 10 5 Destroy Leader 20 | . 20 Successful Hack 9 | . 9 Lose Combat Pursuer 60 | . 60 Influence Decreases 190 | 5 185 Entered New Map 2 | . 2 Time Decay 148 | 5 143 Lost Part 40 | . 40 Squads Dispatched 3 | . 3 Investigation 1 | . 1 Extermination . | . . Reinforcement 2 | . 2 Assault . | . . Garrison . | . . Intercept . | . . Searches Triggered . | . . Construction Impeded . | . . Haulers Reinforced . | . . Active Scanning Responses . | . . Cargo Convoy Interrupts . | . . Stealth | -11 -10 --------- Run | Yrd Mat Distress Signals 2 | . 2 Communications Jammed . | . . Distress Signals . | . . Times Spotted 20 | . 20 Peak Tracking Total 8 | . 8 Tactical Retreats 3 | . 3 Traps | -11 -10 ------- Run | Yrd Mat Traps Triggered 1 | . 1 Indirectly . | . . Trap Hack Attempts . | . . Triggered . | . . Disarmed . | . . Reprogrammed . | . . Reused . | . . Traps Extracted . | . . Installed . | . . Triggered . | . . Machines | -11 -10 ---------- Run | Yrd Mat Machines Disabled . | . . Max in Single Turn . | . . Machines Repaired . | . . Machines Dismantled . | . . Machines Sabotaged . | . . Overloaded Fab Kills . | . . Hacking | -11 -10 --------- Run | Yrd Mat Machines Accessed 1 | . 1 Terminals 1 | . 1 Fabricators . | . . Repair Stations . | . . Recycling Units . | . . Scanalyzers . | . . Garrison Access . | . . Total Hacks 2 | . 2 Successful 2 | . 2 Failed . | . . Catastrophic . | . . Database Lockouts . | . . Manual 2 | . 2 Terminals 2 | . 2 Fabricators . | . . Repair Stations . | . . Recycling Units . | . . Scanalyzers . | . . Garrison Access . | . . Terminal Hacks 1 | . 1 Level Access Points 1 | . 1 Fabricator Hacks . | . . Repair Station Hacks . | . . Recycling Unit Hacks . | . . Scanalyzer . | . . Garrison Access Hacks . | . . Unauthorized Hacks 1 | . 1 Terminals 1 | . 1 Botnet 1 | . 1 Fabricators . | . . Repair Stations . | . . Recycling Units . | . . Scanalyzers . | . . Garrison Access . | . . Data Cores Recovered . | . . Used . | . . Hacking Detections . | . . Full Trace Events . | . . Feedback Events . | . . Feedback Blocked . | . . Robot Schematics Acquired . | . . Robots Built . | . . Authchips . | . . Time . | . . Total Robot Build Rating . | . . Part Schematics Acquired . | . . Parts Built . | . . Authchips . | . . Time . | . . Total Part Build Rating . | . . Parts Repaired . | . . Time . | . . Parts Recycled . | . . Recycled Matter . | . . Retrieved Matter . | . . Retrieved Components . | . . Parts Scanalyzed . | . . Part Schematics Acquired . | . . Parts Damaged . | . . Bothacking | -11 -10 ------------ Run | Yrd Mat Used RIF Installer . | . . Robots Hacked . | . . Non-combat . | . . Combat . | . . Robot Hacks Applied . | . . Relay Couplers Released . | . . Fabnet Peak Effective % . | . . Robots Rewired . | . . Allies Hacked . | . . Hacks Repelled . | . . Allies | -11 -10 -------- Run | Yrd Mat Total Allies . | . . Largest Group . | . . Highest-Rated Group . | . . Highest-Rated Ally . | . . Total Orders . | . . Ally Attacks . | . . Total Damage . | . . Kills . | . . Allies Corrupted . | . . Allies Melted . | . . Intel | -11 -10 ------- Run | Yrd Mat Active Infowar (turns) . | . . Robot Analysis Total . | . . Derelict Logs Recovered . | . . Drone Launches . | . . Drone Recoveries . | . . Exploration | -11 -10 ------------- Run | Yrd Mat Turns Passed 403 | 54 349 Spaces Moved 181 | 27 154 Core . | . . Treads . | . . Legs 2 | 2 . Wheels 179 | 25 154 Hover . | . . Flight . | . . Fastest Speed 80 | 80 80 Average Speed 118 | 82 124 Slowest Speed 200 | 120 200 Overloaded Moves . | . . Propulsion Burnouts . | . . Robots Hopped . | . . Potential Cave-ins . | . . Cave-ins Triggered . | . . Exploration Rate (%) 18 | 3 34 Regions Visited 1 Branch Regions . Pre-discovered Areas . | . . Known Exits Taken . | . . Unknown Exits Taken 1 | 1 . Scrap Searched . | . . Spaces Dug . | . . Terrain Destroyed . | . . Melee . | . . Projectile . | . . AOE . | . . Terrain Rammed . | . . Walls Destroyed . | . . Machines Disabled . | . . Actions | -11 -10 --------- Run | Yrd Mat Total 291 | 45 246 Wait 27 | 1 26 Move 180 | 26 154 Hop . | . . Pick Up 11 | 3 8 Fast Attach 3 | . 3 Attach 7 | 3 4 Detach . | . . Swap 5 | . 5 Drop 6 | 4 2 Fire 52 | 8 44 Melee . | . . Ram . | . . Kick . | . . Crush . | . . Escape Stasis . | . . Rewire . | . . Trap . | . . Miscellaneous . | . . Route ------- -11/Scrapyard -10/Materials (discovered 3 exits: Mat x3) History --------- Turn | Location | Event 2 | -11/Scrapyard | Discovered new exit (range 3) 55 | -11/Scrapyard | Entered Materials 196 | -10/Materials | Core integrity fell below 50% 210 | -10/Materials | Core integrity fell below 20% 233 | -10/Materials | Lost 6 parts (2p3n1w) 326 | -10/Materials | Identified exit to Materials 404 | -10/Materials | Destroyed by G-34 Mercenary with Small Laser Last Messages --------------- 00326_ Current location identified: Materials >>Trojan(Botnet) Trojan loaded successfully. Testing... Terminal linked with 0 systems. Awaiting botnet instructions. >>Access(Main) Found 3 level access points to Materials: (37,66) (41,6) (63,64) Map updated. 00363_ K-01 Serf collects debris. 00380_ S-10 Pest destroyed. 00381_ K-01 Serf collects debris. 00384_ O-16 Technician: "IFF HANDSHAKE FAILED. SECURING TERMINAL." 00386_ ALERT: Hostiles spotted, dispatching reinforcements to Terminal M004. 00396_ ALERT: Hostiles spotted, dispatching reinforcements to Terminal M006. Map ----- +----------------------------------------------------+ | | | | | | | | | | | | | | | | | | | | | | | ?????????????????????????????????????????????????? | | ?????????????????????????????????????????????????? | | ?????????????????????????????????????????????????? | | ?????????????????????????????????????????????????? | | ????????????#????????????????????????????????????? | | ???????????? ????????????????????????????????????? | | ??????????? ??????????????????????